Cogmind - Beta 11.1 @@@ ROGUE MODE // 2022.10.10 @ 20:02:15 Player: Flerik Result: Destroyed by D-53 Grenadier with Mini Grenade Launcher Performance ------------- Evolutions (1) 500 Regions Visited (3) 600 Robots Destroyed (21) 105 Value Destroyed (457) 457 Prototype IDs (0) 0 Alien Tech Used (0) 0 Bonus (0) 0 TOTAL SCORE: 1662 Bonus ------- None Cogmind --------- Core Integrity 0/400 Matter 277/300 Energy 93/100 System Corruption 9% Temperature Cool (4) Movement Flying (34) Location -9/Mines Parts ------- > --- POWER (1) -------- (None) > --- PROPULSION (3) --- Flight Unit VTOL Module > --- UTILITY (3) ------ Small Storage Unit > --- WEAPON (2) ------- Hammer > --- INVENTORY (8) ---- Light Ion Engine Light Treads Light Treads Flight Unit Flight Unit Flight Unit Peak State ------------ > --- POWER ------------ Ion Engine > --- PROPULSION ------- Light Treads Light Treads Light Treads > --- UTILITY ---------- Small Storage Unit Light Armor Plating Hacking Suite > --- WEAPON ----------- Light Assault Rifle Light Assault Rifle > --- INVENTORY -------- Light Ion Engine Light Treads Light Treads Light Assault Rifle [Rating: 11] Favorites ----------- Power Ion Engine Engine Ion Engine Propulsion Light Treads Treads Light Treads Flight Unit Flight Unit Utility Small Storage Unit Storage Small Storage Unit Hackware Hacking Suite Protection Light Armor Plating Weapon Light Assault Rifle Ballistic Gun Light Assault Rifle Impact Weapon Hammer Build | -11 -10 -9 -9 ------- Run | Scr Mat Mat Min Slots Evolved 2 | . . 2 . Power . | . . . . Propulsion 1 | . . 1 . Utility 1 | . . 1 . Weapon . | . . . . Parts Attached 16 | 6 4 4 2 Power 1 | 1 . . . Engine 1 | 1 . . . Core . | . . . . Reactor . | . . . . Propulsion 8 | 2 3 1 2 Treads 6 | 2 3 1 . Leg . | . . . . Wheel . | . . . . Hover . | . . . . Flight 2 | . . . 2 Utility 3 | 1 1 1 . Device . | . . . . Storage 1 | 1 . . . Processor . | . . . . Hackware 1 | . . 1 . Protection 1 | . 1 . . Artifact . | . . . . Weapon 4 | 2 . 2 . Energy Gun . | . . . . Energy Cannon . | . . . . Ballistic Gun 3 | 2 . 1 . Ballistic Cannon . | . . . . Launcher . | . . . . Special Weapon . | . . . . Impact Weapon 1 | . . 1 . Slashing Weapon . | . . . . Piercing Weapon . | . . . . Special Melee Weapon . | . . . . Unidentified Prototypes . | . . . . Parts Lost 9 | . . 8 1 Power 1 | . . 1 . Propulsion 3 | . . 3 . Utility 2 | . . 1 1 Weapon 3 | . . 3 . Highest Loss Streak 8 | . . 8 1 To Critical Strikes 2 | . . 2 . Average Slot Usage (%) 81 | . 99 66 38 Engine 9 | . 14 4 . Treads 21 | . 28 17 . Storage 12 | . 14 11 11 Hackware 4 | . . 11 2 Protection 8 | . 13 4 . Ballistic Gun 19 | . 28 12 . Impact Weapon 2 | . . 4 11 Naked Turns . | . . . . Heaviest Build 15 | 12 15 15 7 Greatest Support 60 | 40 40 60 8 Greatest Overweight (x) 2 | 2 . 2 2 Average Overweight (x) . | . . 1 . Largest Inventory Capacity 8 | 8 8 8 8 Average Capacity 7 | 6 8 8 8 Most Carried 8 | 2 6 8 8 Average Carried 4 | 1 3 5 6 Final Capacity 8 | 8 8 8 8 Final Carried 8 | 2 6 8 6 Class Distribution -------------------- 100% | Mutant Dominant Class ---------------- Mutant | -10/Materials Mutant | -9/Materials Mutant | -9/Mines Resources | -11 -10 -9 -9 ----------- Run | Scr Mat Mat Min Matter Collected 454 | 224 87 143 . Remotely . | . . . . Salvage Created 733 | . 427 297 9 Parts 47 | . 30 15 2 Haulers Intercepted 2 | . 2 . . Recyclers Shooed . | . . . . Parts Field Recycled . | . . . . Retrieved Matter . | . . . . Parts Self-Destructed . | . . . . Prevented . | . . . . Kills | -11 -10 -9 -9 ------- Run | Scr Mat Mat Min Combat Hostiles Destroyed 16 | . 7 8 1 Melee 2 | . . 1 1 Guns 14 | . 7 7 . Classes Destroyed 7 | . 4 3 . Hauler 2 | . 2 . . Recycler 1 | . . 1 . Operator 1 | . 1 . . Watcher 1 | . 1 . . Swarmer 6 | . . 5 1 Grunt 9 | . 7 2 . Brawler 1 | . . 1 . Best Kill Streak 4 | . 3 4 1 Combat Bots Only 4 | . 3 4 1 Max Kills in Single Turn 1 | . 1 1 1 Gunslinging . | . . . . Exploded . | . . . . Melee 1 | . . 1 1 Uniques/NPCs Destroyed . | . . . . Combat | -11 -10 -9 -9 -------- Run | Scr Mat Mat Min Damage Taken 1638 | . 426 921 291 Core 457 | . 51 252 154 Absorbed by Shields . | . . . . Core Remaining (%) 89 | 100 79 . . Volleys Fired 75 | . 50 25 . Largest 2 | . 2 2 . Hottest 40 | . 40 40 . Shots Fired 144 | . 100 44 . Gun 144 | . 100 44 . Cannon . | . . . . Launcher . | . . . . Special . | . . . . Kinetic 144 | . 100 44 . Thermal . | . . . . Explosive . | . . . . Electromagnetic . | . . . . Robot Hit Streak 13 | . 13 7 . Robot Miss Streak 4 | . 1 4 . Penetration Max . | . . . . Secondary Targets 2 | . 1 1 . Max Gunslinging Chain 1 | . 1 1 . Shots Hit Robots 107 | . 78 28 1 Core Hits 42 | . 27 14 1 Critical Kills 2 | . 1 1 . Critical Parts Destroyed . | . . . . Critical Strikes 2 | . 1 1 . Destroy 1 | . 1 . . Smash 1 | . . 1 . Melee Attacks 10 | . . 7 3 Impact 10 | . . 7 3 Slashing . | . . . . Piercing . | . . . . Sneak Attacks 1 | . . 1 . Combat Hostiles . | . . . . Follow-up Attacks . | . . . . Damage Inflicted 953 | . 607 329 17 Guns 836 | . 607 229 . Cannons . | . . . . Explosions . | . . . . Melee 117 | . . 100 17 Ramming . | . . . . Kinetic 836 | . 607 229 . Thermal . | . . . . Explosive . | . . . . Electromagnetic . | . . . . Impact 117 | . . 100 17 Slashing . | . . . . Piercing . | . . . . Highest Corruption 9 | . 1 9 9 Average Corruption 6 | . 1 8 9 Corruption Purged . | . . . . Corruption Blocked . | . . . . Effects 7 | . . 5 2 Message Errors 2 | . . 2 . Matter Fused 1 | . . 1 . Heat Flow Errors 3 | . . 1 2 Energy Discharges 1 | . . 1 . Overload Shots . | . . . . Overflow Damage . | . . . . Projectiles . | . . . . Explosions . | . . . . Melee . | . . . . Knockbacks . | . . . . Impact . | . . . . Kinetic . | . . . . Secondary . | . . . . Self-Inflicted Damage . | . . . . Shots . | . . . . Rammed . | . . . . Targets Rammed . | . . . . Kicked . | . . . . Crushed . | . . . . Highest Temperature 248 | . 100 248 143 Average Temperature 40 | . 33 79 69 Received Heat Transfer 309 | . 213 96 . Siege Activations . | . . . . Robots Corrupted . | . . . . Combat Hostiles . | . . . . Parts Fried 3 | . . 3 . Impact Corruptions 1 | . . 1 . Robots Melted . | . . . . Combat Hostiles . | . . . . Parts Melted . | . . . . Heat Transferred . | . . . . Parts Sabotaged . | . . . . Parts Stolen . | . . . . Parts Stripped . | . . . . Power Chain Reactions . | . . . . Missiles Intercepted . | . . . . Alert | -11 -10 -9 -9 ------- Run | Scr Mat Mat Min Peak Influence 264 | . 261 264 172 Initial 109 | . . 109 102 Average 131 | . 125 179 137 Maximum Alert Level 1 | . 1 1 . Low Security (%) 73 | 100 71 63 100 Level 1 26 | . 28 36 . Level 2 . | . . . . Level 3 . | . . . . Level 4 . | . . . . Level 5 . | . . . . High Security . | . . . . Max Security . | . . . . Squads Dispatched 2 | . 2 . . Investigation . | . . . . Extermination . | . . . . Reinforcement 2 | . 2 . . Assault . | . . . . Garrison . | . . . . Intercept . | . . . . Searches Triggered . | . . . . Construction Impeded . | . . . . Haulers Reinforced . | . . . . Active Scanning Responses . | . . . . Cargo Convoy Interrupts . | . . . . Stealth | -11 -10 -9 -9 --------- Run | Scr Mat Mat Min Distress Signals 5 | . 3 2 . Communications Jammed . | . . . . Distress Signals . | . . . . Times Spotted 43 | . 11 19 13 Peak Tracking Total 8 | . 5 8 7 Tactical Retreats 5 | . 2 1 2 Traps | -11 -10 -9 -9 ------- Run | Scr Mat Mat Min Traps Triggered 2 | . 2 . . Indirectly . | . . . . Trap Hack Attempts . | . . . . Triggered . | . . . . Disarmed . | . . . . Reprogrammed . | . . . . Reused . | . . . . Traps Extracted . | . . . . Installed . | . . . . Triggered . | . . . . Machines | -11 -10 -9 -9 ---------- Run | Scr Mat Mat Min Machines Disabled . | . . . . Max in Single Turn . | . . . . Machines Sabotaged . | . . . . Garrisons Compromised . | . . . . Overloaded Fab Kills . | . . . . Hacking | -11 -10 -9 -9 --------- Run | Scr Mat Mat Min Machines Accessed 1 | . 1 . . Terminals 1 | . 1 . . Fabricators . | . . . . Repair Stations . | . . . . Recycling Units . | . . . . Scanalyzers . | . . . . Garrison Access . | . . . . Total Hacks 4 | . 4 . . Successful 3 | . 3 . . Failed 1 | . 1 . . Catastrophic . | . . . . Database Lockouts . | . . . . Manual 3 | . 3 . . Terminals 4 | . 4 . . Fabricators . | . . . . Repair Stations . | . . . . Recycling Units . | . . . . Scanalyzers . | . . . . Garrison Access . | . . . . Terminal Hacks 1 | . 1 . . Robot Analysis 1 | . 1 . . Fabricator Hacks . | . . . . Repair Station Hacks . | . . . . Recycling Unit Hacks . | . . . . Scanalyzer . | . . . . Garrison Access Hacks . | . . . . Unauthorized Hacks 2 | . 2 . . Terminals 2 | . 2 . . Track 1 | . 1 . . Botnet 1 | . 1 . . Fabricators . | . . . . Repair Stations . | . . . . Recycling Units . | . . . . Scanalyzers . | . . . . Garrison Access . | . . . . Data Cores Recovered . | . . . . Used . | . . . . Hacking Detections 1 | . 1 . . Full Trace Events . | . . . . Feedback Events . | . . . . Feedback Blocked . | . . . . Robot Schematics Acquired . | . . . . Robots Built . | . . . . Authchips . | . . . . Time . | . . . . Total Robot Build Rating . | . . . . Part Schematics Acquired . | . . . . Parts Built . | . . . . Authchips . | . . . . Time . | . . . . Total Part Build Rating . | . . . . Parts Repaired . | . . . . Time . | . . . . Parts Recycled . | . . . . Recycled Matter . | . . . . Retrieved Matter . | . . . . Retrieved Components . | . . . . Parts Scanalyzed . | . . . . Part Schematics Acquired . | . . . . Parts Damaged . | . . . . Bothacking | -11 -10 -9 -9 ------------ Run | Scr Mat Mat Min Used RIF Installer . | . . . . Robots Hacked . | . . . . Non-combat . | . . . . Combat . | . . . . Robot Hacks Applied . | . . . . Relay Couplers Released . | . . . . Fabnet Peak Effective % . | . . . . Robots Rewired . | . . . . Allies Hacked . | . . . . Hacks Repelled . | . . . . Allies | -11 -10 -9 -9 -------- Run | Scr Mat Mat Min Total Allies . | . . . . Largest Group . | . . . . Highest-Rated Group . | . . . . Highest-Rated Ally . | . . . . Total Orders . | . . . . Ally Attacks . | . . . . Total Damage . | . . . . Kills . | . . . . Allies Corrupted . | . . . . Allies Melted . | . . . . Intel | -11 -10 -9 -9 ------- Run | Scr Mat Mat Min Robot Analysis Total 1 | . 1 . . Derelict Logs Recovered . | . . . . Drone Launches . | . . . . Drone Recoveries . | . . . . Exploration | -11 -10 -9 -9 ------------- Run | Scr Mat Mat Min Turns Passed 663 | 79 296 244 44 Spaces Moved 324 | 51 100 100 73 Core 77 | 20 . 52 5 Treads 179 | 31 100 48 . Legs . | . . . . Wheels . | . . . . Hover . | . . . . Flight 68 | . . . 68 Fastest Speed 34 | 50 160 150 34 Average Speed 127 | 135 160 154 41 Slowest Speed 160 | 160 160 160 150 Overloaded Moves . | . . . . Propulsion Burnouts . | . . . . Robots Hopped 1 | . . . 1 Cave-ins Triggered . | . . . . Exploration Rate (%) 20 | 4 28 17 33 Regions Visited 3 Branch Regions 1 Pre-discovered Areas . | . . . . Known Exits Taken . | . . . . Unknown Exits Taken 3 | 1 1 1 . Scrap Searched 1 | . . . 1 Spaces Dug . | . . . . Terrain Destroyed . | . . . . Melee . | . . . . Projectile . | . . . . AOE . | . . . . Terrain Rammed . | . . . . Walls Destroyed . | . . . . Machines Disabled . | . . . . Actions | -11 -10 -9 -9 --------- Run | Scr Mat Mat Min Total 433 | 58 154 141 80 Wait 4 | . . 1 3 Move 319 | 50 99 99 71 Hop 1 | . . . 1 Pick Up 8 | 2 1 5 . Fast Attach 8 | 6 1 1 . Attach 5 | . . 3 2 Detach . | . . . . Swap 3 | . 3 . . Drop . | . . . . Fire 75 | . 50 25 . Melee 10 | . . 7 3 Ram . | . . . . Kick . | . . . . Crush . | . . . . Escape Stasis . | . . . . Rewire . | . . . . Trap . | . . . . Miscellaneous . | . . . . Route ------- -11/Scrapyard -10/Materials -9/Materials -9/Mines (discovered 1 exit: [*Mat]) History --------- Turn | Location | Event 5 | -11/Scrapyard | Discovered new exit (range 16) 80 | -11/Scrapyard | Entered Materials 302 | -10/Materials | Build established: Mutant 322 | -10/Materials | Discovered new exit (range 15) 376 | -10/Materials | Entered another Materials area 376 | -9/Materials | Evolved 2 slots: Propulsion x1, Utility x1 561 | -9/Materials | Lost 8 parts (1p3n1u3w) 600 | -9/Materials | Core integrity fell below 50% 608 | -9/Materials | Discovered new exit (range 9) 620 | -9/Materials | Entered Mines 632 | -9/Mines | Core integrity fell below 20% 654 | -9/Mines | Assembled infested the area 662 | -9/Mines | Discovered new exit (range 14) 664 | -9/Mines | Destroyed by D-53 Grenadier with Mini Grenade Launcher Last Messages --------------- LOCATION=UNKNOWN GOAL=ESCAPE Something is scanning the area. 00624_ System corrupted: Heat flow error (+171). 00634_ Hacking Suite destroyed. 00636_ S-10 Pest destroyed. 00639_ System corrupted: Heat flow error (+150). 00642_ S-10 Pest destroyed. 00654_ ALERT: Infestation in the mines, dispatching Demolisher response squad. 00656_ Searching scrap... 00656_ Found Spread Laser. 00656_ Found Maul. 00656_ Found Beam Cannon. 00656_ Found 15 Matter. 00661_ K-01 Serf collects debris. 00662_ EXIT=FOUND 00664_ C-30 ARC bursts open, deploying its payload. 00664_ D-53 Grenadier unfolds itself. 00664_ K-01 Serf collects debris. Map ----- +----------------------------------------------------+ | ?????????????????????????????????????????????????? | | ?????????????????????????????????????????????????? | | ?????????????????????????????????????????????????? | | ?????????????????????????????????????????????????? | | ?????????????????????????????????????????????????? | | ?????????????????????????????????????????????????? | | ?????????????????????????????????????????????????? | | ?????????????????????????????????????????????????? | | ?????????????????????????????????????????????????? | | ?????????????????????????????????????????????????? | | ?????????????????????????????????????????????????? | | ?????????????????????#???????????????????????????? | | ????????????????????# #?????????????????????????? | | ???????????????????? ?????????????????????????? | | ????????????????????? ?????????????????????????? | | ????????????????????? ????######???????????????? | | ????????????????????? ???? #???????????????? | | ??????????????????????< ????? #???????????????? | | ?????????????????????? ?????# #????????????###? | | ??????????????????????# ?????# #######?????? #? | | ??????????????????????# ?????# ## ##?????# #? | | ??????????????????????# ?##### %d ####??# #? | | ?????????????????????## ## ##d ##?# #? | | ????????????????????## # ### #? | | ????????????????????# k []## | | ????????????????????# @ """ %/ | | ????????????????????# """ ###### | | ??????????? ##### """ ### #????? | | ?????????? t ##?## ##????? | | ??????????# u ##??# #?????? | | ???????????# ##u##### #??## #?????? | | ????????????????#?????## #??## ##?????? | | ???????????????????????# #??#####??????? | | ??????????????????????# #?????????????? | | ?????????????????????# ##??????######## | | ?????????????????????# #???????# | | ?????????????????????## #??####?# ###### | | ??????????????????????## #?## ### ###### | | ???????????????????????# ##?# | | ???????????????????????# #??# ######### | | ???????????????????????## #??# #???????? | | ????????????????????????# #?## #???????? | | ????????????????????????## #?# ##??????? | | ?????????????????????????## ##?# """ ##?????? | | ???????????????????????????# ##?## """ #?????? | | ????????????????????????????###???# """ #?????? | | ??????????????????????????????????# """ ##?????? | | ??????????????????????????????????# #######?? | | ??????????????????????????????????## =% ### | | ???????????????????????????????????## | +----------------------------------------------------+ Best States ------------- Heat Dissipation 28 Energy Generation 10 Energy Capacity 250 Matter Stores 300 Matter Capacity 300 Sight Range 16 Terrain Scan Density 10 Armor Coverage 150 Evasion (%) 63 Recoil Reduction 3 Offensive Hacking 10 Item Schematics ----------------- None Robot Schematics ------------------ None Fabricated ------------ Nothing Alien Tech Used ----------------- None Achievements -------------- None Challenges ------------ None Game ------ Seed ElectronWarpTreads Manual? 0 Play Time 00:05:59 Cumulative 60.5 hours Start 2022.10.10 @ 19:55:02 End 2022.10.10 @ 20:02:15 Sessions 1 Manual Loads 0 Difficulty Rogue Special Mode None Game No. 95 Rogue 94 Adventurer 1 Explorer 0 Win Type - Total 3 Types 3/0/0/0/0/0/0/0/0 Lore% 60 Gallery% 50 Achievement% 47 Wizard Run 0 Options --------- ASCII 0 Keyboard 0 Movement Numpad Keybinds 0 Fullscreen 1 Font 18/SmallcapsGlow Map View 76x50 Tactical HUD 1 Map Filters NONE Filters NONE Steam 1 RUN: efbfd181-c076-47d6-aff5-bd8cb4d863a1